Cogmind - Beta 11 X5 @@@ ROGUE MODE // 2021.06.20 @ 19:48:01 Player: Exp. Geonium Core Result: Destroyed by Y-54 Guardian with Gatling Laser Performance ------------- Evolutions (3) 1500 Regions Visited (4) 800 Robots Destroyed (15) 75 Value Destroyed (246) 246 Prototype IDs (0) 0 Alien Tech Used (0) 0 Bonus (0) 0 TOTAL SCORE: 2621 Bonus ------- None Cogmind --------- Core Integrity 0/700 Matter 300/300 Energy 99/100 System Corruption 1% Temperature Cool (6) Movement Core (50) Location -7/Factory Parts ------- > --- POWER (1) -------- (None) > --- PROPULSION (4) --- (None) > --- UTILITY (4) ------ (None) > --- WEAPON (4) ------- (None) > --- INVENTORY (5) ---- Large Storage Unit Improved Terrain Scanner Seismic Analyzer Melee Analysis Suite Melee Analysis Suite Peak State ------------ > --- POWER ------------ (None) > --- PROPULSION ------- Advanced Treads Wheel > --- UTILITY ---------- Large Storage Unit Signal Interpreter Hacking Suite System Shield > --- WEAPON ----------- Heavy Mace > --- INVENTORY -------- Melee Analysis Suite Melee Analysis Suite Melee Analysis Suite Melee Analysis Suite [Rating: 16] Favorites ----------- Power None Propulsion Light Treads Treads Light Treads Wheel Wheel Flight Unit VTOL Module Utility Signal Interpreter Device Weight Redist. System Storage Large Storage Unit Processor Signal Interpreter Hackware Hacking Suite Protection Medium Armor Plating Weapon Heavy Mace Launcher Grenade Launcher Impact Weapon Heavy Mace Build | -11 -10 -9 -8 -7 ------- Run | Scr Mat Mat Mat Fac Slots Evolved 6 | . . 2 2 2 Power . | . . . . . Propulsion 2 | . . 2 . . Utility 2 | . . . 2 . Weapon 2 | . . . . 2 Parts Attached 18 | 2 3 1 7 5 Power . | . . . . . Engine . | . . . . . Core . | . . . . . Reactor . | . . . . . Propulsion 6 | 2 . . 2 2 Treads 3 | 2 . . 1 . Leg . | . . . . . Wheel 2 | . . . 1 1 Hover . | . . . . . Flight 1 | . . . . 1 Utility 9 | . 2 . 4 3 Device 1 | . . . . 1 Storage 1 | . . . 1 . Processor 4 | . 2 . . 2 Hackware 2 | . . . 2 . Protection 1 | . . . 1 . Artifact . | . . . . . Weapon 3 | . 1 1 1 . Energy Gun . | . . . . . Energy Cannon . | . . . . . Ballistic Gun . | . . . . . Ballistic Cannon . | . . . . . Launcher 2 | . 1 1 . . Special Weapon . | . . . . . Impact Weapon 1 | . . . 1 . Slashing Weapon . | . . . . . Piercing Weapon . | . . . . . Special Melee Weapon . | . . . . . Unidentified Prototypes . | . . . . . Parts Lost 13 | . . 3 1 9 Power . | . . . . . Propulsion 6 | . . 2 1 3 Utility 5 | . . . . 5 Weapon 2 | . . 1 . 1 Highest Loss Streak 6 | . . 3 1 6 Average Slot Usage (%) 40 | . 42 35 48 36 Treads 10 | . 28 13 8 2 Processor 15 | . 13 22 12 16 Hackware 5 | . . . 17 3 Protection 1 | . . . . 2 Impact Weapon 3 | . . . 5 5 Naked Turns 5 | . . . . 5 Heaviest Build 23 | . . . 23 10 Greatest Support 40 | 40 40 3 22 22 Greatest Overweight (x) 2 | . . . 2 . Average Overweight (x) . | . . . . . Largest Inventory Capacity 15 | 5 5 5 15 5 Average Capacity 5 | 5 5 5 7 5 Most Carried 5 | . 2 5 5 5 Average Carried 3 | . 1 2 4 4 Final Capacity 5 | 5 5 5 5 5 Final Carried 5 | . 2 5 5 5 Class Distribution -------------------- 65% | Mutant 34% | Hacker-Mutant Dominant Class ---------------- Mutant | -10/Materials Mutant | -9/Materials Hacker-Mutant | -8/Materials Mutant | -7/Factory Resources | -11 -10 -9 -8 -7 ----------- Run | Scr Mat Mat Mat Fac Matter Collected 382 | 220 5 45 . 112 Remotely . | . . . . . Salvage Created 255 | . 5 37 65 148 Parts 22 | . 7 3 5 7 Haulers Intercepted . | . . . . . Recyclers Shooed . | . . . . . Parts Field Recycled . | . . . . . Retrieved Matter . | . . . . . Parts Self-Destructed . | . . . . . Prevented . | . . . . . Kills | -11 -10 -9 -8 -7 ------- Run | Scr Mat Mat Mat Fac Combat Hostiles Destroyed 13 | . 3 2 4 4 Melee 4 | . . . 2 2 AOE 5 | . 3 2 . . Classes Destroyed 3 | . 1 1 . 1 Tunneler 2 | . . . . 2 Swarmer 12 | . 3 1 4 4 Grunt 1 | . . 1 . . Best Kill Streak 4 | . 3 2 4 3 Combat Bots Only 4 | . 3 2 4 2 Max Kills in Single Turn 2 | . 2 2 1 1 Gunslinging . | . . . . . Exploded 2 | . 2 2 . . Melee 1 | . . . 1 1 Uniques/NPCs Destroyed . | . . . . . Combat | -11 -10 -9 -8 -7 -------- Run | Scr Mat Mat Mat Fac Damage Taken 2119 | . 78 599 352 1090 Core 1186 | . 18 310 153 705 Absorbed by Shields . | . . . . . Core Remaining (%) 71 | 100 92 22 72 . Volleys Fired 4 | . 2 2 . . Largest 1 | . 1 1 . . Hottest 30 | . 30 30 . . Shots Fired 4 | . 2 2 . . Gun . | . . . . . Cannon . | . . . . . Launcher 4 | . 2 2 . . Special . | . . . . . Kinetic . | . . . . . Thermal . | . . . . . Explosive 4 | . 2 2 . . Electromagnetic . | . . . . . Robot Hit Streak 2 | . 2 . . . Robot Miss Streak . | . . . . . Penetration Max . | . . . . . Secondary Targets . | . . . . . Shots Hit Robots 23 | . 2 . 6 15 Core Hits 17 | . 4 8 2 3 Critical Kills . | . . . . . Critical Parts Destroyed . | . . . . . Critical Strikes . | . . . . . Melee Attacks 33 | . . . 12 21 Impact 33 | . . . 12 21 Slashing . | . . . . . Piercing . | . . . . . Sneak Attacks 2 | . . . . 2 Combat Hostiles . | . . . . . Follow-up Attacks . | . . . . . Damage Inflicted 1283 | . 152 349 202 580 Guns . | . . . . . Cannons . | . . . . . Explosions 501 | . 152 349 . . Melee 761 | . . . 198 563 Ramming 21 | . . . 4 17 Kinetic . | . . . . . Thermal . | . . . . . Explosive 501 | . 152 349 . . Electromagnetic . | . . . . . Impact 761 | . . . 198 563 Slashing . | . . . . . Piercing . | . . . . . Highest Corruption 1 | . . . . 1 Average Corruption 1 | . . . . 1 Corruption Purged . | . . . . . Overload Shots . | . . . . . Overflow Damage 124 | . . . 21 103 Projectiles . | . . . . . Explosions . | . . . . . Melee 124 | . . . 21 103 Knockbacks . | . . . . . Impact . | . . . . . Kinetic . | . . . . . Secondary . | . . . . . Self-Inflicted Damage 47 | . 39 . . 8 Shots 1 | . 1 . . . Rammed 4 | . . . 3 1 Targets Rammed 4 | . . . 3 1 Kicked . | . . . . . Crushed . | . . . . . Highest Temperature . | . . . . . Average Temperature . | . . . . . Received Heat Transfer 276 | . 6 117 . 153 Siege Activations . | . . . . . Robots Corrupted . | . . . . . Combat Hostiles . | . . . . . Parts Fried 1 | . . . . 1 Impact Corruptions 9 | . . . 2 7 Robots Melted . | . . . . . Combat Hostiles . | . . . . . Parts Melted . | . . . . . Heat Transferred . | . . . . . Parts Sabotaged . | . . . . . Parts Stolen . | . . . . . Parts Stripped . | . . . . . Power Chain Reactions . | . . . . . Missiles Intercepted . | . . . . . Alert | -11 -10 -9 -8 -7 ------- Run | Scr Mat Mat Mat Fac Peak Influence 178 | . 130 169 178 175 Initial 80 | . . 54 58 80 Average 97 | . 45 100 109 127 Maximum Alert Level . | . . . . . Low Security (%) 100 | 100 100 100 100 100 Level 1 . | . . . . . Level 2 . | . . . . . Level 3 . | . . . . . Level 4 . | . . . . . Level 5 . | . . . . . High Security . | . . . . . Max Security . | . . . . . Squads Dispatched 4 | . 1 2 . 1 Investigation 1 | . 1 . . . Extermination 1 | . . . . 1 Reinforcement 2 | . . 2 . . Assault . | . . . . . Garrison . | . . . . . Intercept . | . . . . . Construction Impeded . | . . . . . Haulers Reinforced . | . . . . . Cargo Convoy Interrupts . | . . . . . Stealth | -11 -10 -9 -8 -7 --------- Run | Scr Mat Mat Mat Fac Distress Signals 4 | . 2 2 . . Communications Jammed . | . . . . . Distress Signals . | . . . . . Times Spotted 48 | . 7 20 6 15 Peak Tracking Total 18 | . 6 18 4 7 Tactical Retreats 5 | . 2 1 1 1 Traps | -11 -10 -9 -8 -7 ------- Run | Scr Mat Mat Mat Fac Traps Triggered . | . . . . . Indirectly . | . . . . . Trap Hack Attempts . | . . . . . Triggered . | . . . . . Disarmed . | . . . . . Reprogrammed . | . . . . . Reused . | . . . . . Traps Extracted . | . . . . . Installed . | . . . . . Triggered . | . . . . . Machines | -11 -10 -9 -8 -7 ---------- Run | Scr Mat Mat Mat Fac Machines Disabled 1 | . . 1 . . Max in Single Turn 1 | . . 1 . . Machines Sabotaged . | . . . . . Garrisons Compromised . | . . . . . Overloaded Fab Kills . | . . . . . Fab Network Shutdowns . | . . . . . Hacking | -11 -10 -9 -8 -7 --------- Run | Scr Mat Mat Mat Fac Machines Accessed 3 | . 1 1 1 . Terminals 3 | . 1 1 1 . Fabricators . | . . . . . Repair Stations . | . . . . . Recycling Units . | . . . . . Scanalyzers . | . . . . . Garrison Access . | . . . . . Total Hacks 8 | . 2 5 1 . Successful 2 | . . 1 1 . Failed 6 | . 2 4 . . Catastrophic 2 | . 1 1 . . Database Lockouts . | . . . . . Manual 8 | . 2 5 1 . Terminals 8 | . 2 5 1 . Fabricators . | . . . . . Repair Stations . | . . . . . Recycling Units . | . . . . . Scanalyzers . | . . . . . Garrison Access . | . . . . . Terminal Hacks 2 | . . 1 1 . Level Access Points 1 | . . . 1 . Branch Access Points 1 | . . 1 . . Fabricator Hacks . | . . . . . Repair Station Hacks . | . . . . . Recycling Unit Hacks . | . . . . . Scanalyzer . | . . . . . Garrison Access Hacks . | . . . . . Unauthorized Hacks . | . . . . . Terminals . | . . . . . Fabricators . | . . . . . Repair Stations . | . . . . . Recycling Units . | . . . . . Scanalyzers . | . . . . . Garrison Access . | . . . . . Data Cores Recovered . | . . . . . Used . | . . . . . Hacking Detections 2 | . 1 1 . . Full Trace Events 2 | . 1 1 . . Feedback Events . | . . . . . Feedback Blocked . | . . . . . Robot Schematics Acquired . | . . . . . Robots Built . | . . . . . Matter . | . . . . . Time . | . . . . . Total Robot Build Rating . | . . . . . Part Schematics Acquired . | . . . . . Parts Built . | . . . . . Matter . | . . . . . Time . | . . . . . Total Part Build Rating . | . . . . . Parts Repaired . | . . . . . Time . | . . . . . Parts Recycled . | . . . . . Recycled Matter . | . . . . . Retrieved Matter . | . . . . . Retrieved Components . | . . . . . Parts Scanalyzed . | . . . . . Part Schematics Acquired . | . . . . . Parts Damaged . | . . . . . Bothacking | -11 -10 -9 -8 -7 ------------ Run | Scr Mat Mat Mat Fac Used RIF Installer . | . . . . . Robots Hacked . | . . . . . Non-combat . | . . . . . Combat . | . . . . . Robot Hacks Applied . | . . . . . Relay Couplers Released . | . . . . . Robots Rewired . | . . . . . Allies Hacked . | . . . . . Hacks Repelled . | . . . . . Allies | -11 -10 -9 -8 -7 -------- Run | Scr Mat Mat Mat Fac Total Allies . | . . . . . Largest Group . | . . . . . Highest-Rated Group . | . . . . . Highest-Rated Ally . | . . . . . Total Orders . | . . . . . Ally Attacks . | . . . . . Total Damage . | . . . . . Kills . | . . . . . Allies Corrupted . | . . . . . Allies Melted . | . . . . . Intel | -11 -10 -9 -8 -7 ------- Run | Scr Mat Mat Mat Fac Robot Analysis Total . | . . . . . Derelict Logs Recovered . | . . . . . Drone Launches . | . . . . . Drone Recoveries . | . . . . . Exploration | -11 -10 -9 -8 -7 ------------- Run | Scr Mat Mat Mat Fac Turns Passed 737 | 35 144 90 174 294 Spaces Moved 915 | 26 230 161 196 302 Core 795 | 8 217 161 174 235 Treads 93 | 18 13 . 11 51 Legs . | . . . . . Wheels 27 | . . . 11 16 Hover . | . . . . . Flight . | . . . . . Fastest Speed 50 | 50 50 50 50 50 Average Speed 61 | 126 56 50 58 67 Slowest Speed 245 | 160 160 50 245 145 Overloaded Moves . | . . . . . Propulsion Burnouts . | . . . . . Robots Hopped . | . . . . . Cave-ins Triggered . | . . . . . Exploration Rate (%) 23 | 3 46 33 22 12 Regions Visited 4 Branch Regions . Pre-discovered Areas . | . . . . . Known Exits Taken 3 | . 1 1 1 . Unknown Exits Taken 1 | 1 . . . . Scrap Searched . | . . . . . Spaces Dug 2 | . . . 2 . Terrain Destroyed 19 | . 17 . 2 . Melee 2 | . . . 2 . Projectile . | . . . . . AOE 17 | . 17 . . . Terrain Rammed . | . . . . . Walls Destroyed . | . . . . . Machines Disabled . | . . . . . Actions | -11 -10 -9 -8 -7 --------- Run | Scr Mat Mat Mat Fac Total 1012 | 27 241 167 228 349 Wait 30 | . 4 . 10 16 Move 911 | 25 229 160 195 302 Hop . | . . . . . Pick Up 8 | . 2 4 . 2 Fast Attach 13 | 2 2 . 6 3 Attach 4 | . 1 1 . 2 Detach 2 | . 1 . 1 . Swap 1 | . . . 1 . Drop 2 | . . . . 2 Fire 4 | . 2 2 . . Melee 33 | . . . 12 21 Ram 1 | . . . . 1 Kick . | . . . . . Crush 3 | . . . 3 . Escape Stasis . | . . . . . Rewire . | . . . . . Trap . | . . . . . Miscellaneous . | . . . . . Route ------- -11/Scrapyard -10/Materials (discovered 2 exits: *Mat / *Min) -9/Materials (discovered 3 exits: *Mat / *Min x2) -8/Materials (discovered 3 exits: *Fac x3) -7/Factory History --------- Turn | Location | Event 3 | -11/Scrapyard | Discovered new exit (range 15) 36 | -11/Scrapyard | Entered Materials 79 | -10/Materials | Discovered new exit (range 15) 114 | -10/Materials | Identified exit to Mines 172 | -10/Materials | Discovered new exit (range 14) 179 | -10/Materials | Identified exit to Materials 180 | -10/Materials | Entered another Materials area 180 | -9/Materials | Evolved 2 slots: Propulsion x2 180 | -9/Materials | Discovered new exit (range 14) 189 | -9/Materials | Identified exit to Mines 246 | -9/Materials | Core integrity fell below 50% 262 | -9/Materials | Discovered new exit (range 16) 269 | -9/Materials | Identified exit to Materials 270 | -9/Materials | Entered another Materials area 270 | -8/Materials | Evolved 2 slots: Utility x2 273 | -8/Materials | Lost 3 parts (2n1w) 390 | -8/Materials | Identified exit to Factory 444 | -8/Materials | Entered Factory 444 | -7/Factory | Evolved 2 slots: Weapon x2 701 | -7/Factory | Core integrity fell below 50% 731 | -7/Factory | Lost 6 parts (2n3u1w) 733 | -7/Factory | Core integrity fell below 20% 738 | -7/Factory | Destroyed by Y-54 Guardian with Gatling Laser Last Messages --------------- 00620_ Sneak attack on T-07 Excavator. 00620_ T-07 Excavator destroyed. 00623_ Acquired 10 matter. 00624_ Acquired Wheel. 00626_ Acquired 10 matter. 00628_ Acquired Imp. Terrain Scanner. 00629_ Acquired Seismic Analyzer. 00657_ Wheel destroyed. 00657_ Hvy. Mace destroyed. 00659_ VTOL Module destroyed. 00670_ Weight Redist. System destroyed. 00694_ ALERT: Rogue bot located, Programmers report to Factory Zone 7P. 00699_ Melee Analysis Suite destroyed. 00700_ S-27 Virus destroyed. 00700_ Melee Analysis Suite destroyed. 00716_ U-05 Engineer lays Concrete. 00733_ Slammed into Y-54 Guardian. 00733_ Signal Interpreter destroyed. 00733_ System corrupted by crushing effect (+1). 00737_ Critical hit (Burn: +37). Map ----- +----------------------------------------------------+ | ?????????????????????????????????????????????????? | | ?????????????????????????????????????????????????? | | ?????????????????????????????????????????????????? | | ?????????????????????????????????????????????????? | | ?????????????????????????????????????????????????? | | ?????????????????????????????????????????????????? | | ?????????????????????????????????????????????????? | | ?????????????????????????????????????????????????? | | ?????????????????????????????????????????????????? | | ?????????????????????????????????????????????????? | | ?????????????????????????????????????????????????? | | ??????????????????????????????? ?????????????????? | | ??????????????????????????????# ##???????????????? | | ????????????????????????????# #??????????????? | | ????????????????????????????# #??????????????? | | ????????????????????????????# #?????????????## | | ????????????????????????????# #?????????????# | | ????????????????????????????? ??????????????# | | ?????????????????????????????# #??????????????# | | ?????????????????????????????# #??????????????# | | ?????????????????????????????# #??????????????# | | ?????????????????????????????# #??????????????# | | ????????????????????????????## ##?????????????# | | ????????????????????????????# ##+############ | | ?????????????????############ gt | | ?????????? @ g | | ?????????? ######### Y% | | ????????????????????????????# ############### | | ????????????????????????????###+###?????????????## | | ????????????????????????????? ???????????????? | | ??????????????????????????? ?????????????? | | ?????????????????????????# ???????????? | | ?????????????????????????#! #??????????? | | ?????????????????????????# """" """" #??????????? | | ?????????????????????????# """" """" #??????????? | | ?????????????????????????# """" """" #??????????? | | ?????????????????????????# """" """? #??????????? | | ?????????????????????????# ????? ""??????????????? | | ?????????????????????????#?????? "???????????????? | | ???????????????????????????????? "???????????????? | | ???????????????????????????????? ???????????????? | | ?????????????????????????????????#???????????????? | | ?????????????????????????????????????????????????? | | ?????????????????????????????????????????????????? | | ?????????????????????????????????????????????????? | | ?????????????????????????????????????????????????? | | ?????????????????????????????????????????????????? | | ?????????????????????????????????????????????????? | | ?????????????????????????????????????????????????? | | ?????????????????????????????????????????????????? | +----------------------------------------------------+ Best States ------------- Heat Dissipation 34 Energy Generation 5 Energy Capacity 100 Matter Stores 300 Matter Capacity 300 Sight Range 16 Terrain Scan Density 10 Armor Coverage 225 Evasion (%) 50 Targeting Accuracy 5 Melee Accuracy 10 Recoil Reduction 2 Offensive Hacking 10 Defensive Hacking 10 Item Schematics ----------------- None Robot Schematics ------------------ None Fabricated ------------ Nothing Alien Tech Used ----------------- None Achievements -------------- None Challenges ------------ None Game ------ Seed MinesnifferGuidedNetwork Manual? 0 Play Time 00:12:19 Cumulative 127.7 hours Start 2021.06.20 @ 19:38:26 End 2021.06.20 @ 19:48:01 Sessions 1 Manual Loads 0 Difficulty Rogue Special Mode None Game No. 185 Rogue 185 Adventurer 0 Explorer 0 Win Type - Total 5 Types 4/0/0/1/0/0/0/0/0 Lore% 49 Gallery% 73 Achievement% 58 Wizard Run 0 Options --------- ASCII 0 Keyboard 0 Movement Numpad Keybinds 0 Fullscreen 1 Font 18/Terminus Map View 76x50 Tactical HUD 1 Map Filters NONE Filters NONE Steam 1 RUN: df7b279e-3836-486b-bcb7-cd54e728d63f